Expenditure Date,Department,Beneficiary,Amount (�),Summary of purpose of expenditure,Description
01/08/2021,Driver Training School,RSS UNI SE,3.50,Catering/Refreshments,RSS UNI SERV STN
01/08/2021,East & Somerset,KEELE NORT,12.79,Subsistence,KEELE NORTH STARBUCKS
01/08/2021,East & Somerset,GLOUCESTER,38.70,Catering/Refreshments,GLOUCESTER SERVICES NORTH
02/08/2021,USAR Team,SUBWAY 433,3.22,Catering/Refreshments,SUBWAY 43372 Altarun
02/08/2021,Academy Management,TESCO STOR,3.00,Catering/Refreshments,TESCO STORES 3072
02/08/2021,Assets & Systems,CENTRAL CO,4.55,Meals for Training Courses,CENTRAL CONVENIENT STORES
02/08/2021,Customer Services,TESCO PFS,2.77,Meals for Training Courses,TESCO PFS 3708
03/08/2021,ICT Delivery,PREMIER FA,40.79,ICT Desktop Service,PREMIER FARNELL
03/08/2021,ICT Delivery,PKDETAILIN,60.00,ICT Desktop Service,PKDETAILING
03/08/2021,ICT Delivery,PREMIER FA,85.80,ICT Desktop Service,PREMIER FARNELL
03/08/2021,Chelston Vehicle Engineering,AMZNMktpla,28.13,Garage Equipment,AMZNMktplace
03/08/2021,Chelston Vehicle Engineering,AMZNMktpla,1.66,Carriage Charges,AMZNMktplace
03/08/2021,Democratic Services,AMZNMktpla,78.30,Printing/Stationery/Photocopy,AMZNMktplace
03/08/2021,Democratic Services,LYRECO UK,14.16,Printing/Stationery/Photocopy,PILOT G2 RETRACT GEL B/POINT PEN 0.7 BLK
03/08/2021,Democratic Services,LYRECO UK,0.71,Printing/Stationery/Photocopy,UHU 43510 ECONOMY WHITE TACK
03/08/2021,Democratic Services,LYRECO UK,8.64,Printing/Stationery/Photocopy,LYRECO RETRACTABLE B/POINT PEN MED BLK
03/08/2021,Braunton,SCREWFIX D,10.83,Standard Equipment,SCREWFIX DIRECT
03/08/2021,Academy Management,ZOOM.US 88,28.78,Licence fees,Standard Pro Monthly
03/08/2021,Customer Services,TESCO STOR,3.00,Meals for Training Courses,TESCO STORE 2487
03/08/2021,West & North,TOOLSTATIO,55.57,Standard Equipment,TOOLSTATION LTD
04/08/2021,ICT Delivery,MANX TELEC,16.66,ICT Mobile Telephony Service,MANX TELECOM
04/08/2021,Crownhill Vehicle Engineering,TECALEMIT,711.00,Garage Equipment,TECALEMIT GARAGE EQUIPME
04/08/2021,Barnstaple Group,LYRECO UK,0.88,Printing/Stationery/Photocopy,PK5 POPPER WALLET FOOLSCAP BRIGHT ASST
04/08/2021,Barnstaple Group,LYRECO UK,3.90,Printing/Stationery/Photocopy,SCOTCH EASY USE TAPE 25X66MM CLEAR
04/08/2021,Barnstaple Group,LYRECO UK,1.50,Printing/Stationery/Photocopy,FOCUS BALL PEN FINE RED
04/08/2021,Barnstaple Group,LYRECO UK,3.00,Printing/Stationery/Photocopy,FOCUS BALL PEN FINE BLK
04/08/2021,Barnstaple Group,LYRECO UK,4.90,Printing/Stationery/Photocopy,TESA 4120 PACK TAPE PVC 50X66M CLEAR
04/08/2021,Barnstaple Group,LYRECO UK,1.56,Printing/Stationery/Photocopy,LYRECO CORRECT TAPE SIDELOAD 4.2MMX8.5M
04/08/2021,Barnstaple Group,LYRECO UK,5.16,Printing/Stationery/Photocopy,PK100 LYRECO POCK A4 80MIC CLEAR GLASS
04/08/2021,Barnstaple Group,LYRECO UK,9.12,Printing/Stationery/Photocopy,LYRECO PREMIUM GEL PEN RT 0.7MM BLACK
04/08/2021,Barnstaple Group,LYRECO UK,5.79,Printing/Stationery/Photocopy,FELLOWES 35250 SHREDDER OIL 355ML
04/08/2021,Exeter Group,Amazon.co.,30.38,Standard Equipment,Amazon.co.uk*5J5DE0CL5
04/08/2021,West Devon,XMA LTD,16.44,Print Consumables,INTEGRAL USB DRIVE 32GB INFD32GBBLK
04/08/2021,West Devon,XMA LTD,16.44,Print Consumables,INTEGRAL USB DRIVE 32GB INFD32GBBLK
04/08/2021,South Devon,ASDA STORE,18.39,Catering/Refreshments,ASDA STORES LTD 5762
04/08/2021,South Devon,BOOKER LIM,164.69,Standard Equipment,BOOKER LIMITED NEWTON ABB
04/08/2021,Yeovil Group,CURRYS ONL,37.99,Standard Equipment,CURRYS ONLINE
04/08/2021,Customer Services,JURASSIC C,4.80,Meals for Training Courses,JURASSIC COAST COFFEE
04/08/2021,Customer Services,HONITON SF,2.00,Meals for Training Courses,HONITON SF CONNECT
04/08/2021,Customer Services,SHELL COUN,4.49,Meals for Training Courses,SHELL COUNTES WEAR
05/08/2021,Chelston Vehicle Engineering,SGS ENGINE,374.99,Garage Equipment,SGS ENGINEERING  UK  L
05/08/2021,Public Relations,SHUTTERSTO,22.80,Printing/Stationery/Photocopy,SHUTTERSTOCK IRELAND LIMI
05/08/2021,Human Resources,LinkedIn 5,352.04,Recruitment Advertising,LinkedIn 5956396986
05/08/2021,Assets & Systems,WORDS OF W,498.75,Audio Visual Equipment,WORDS OF WISDOM
05/08/2021,Assets & Systems,BLS*MONDAY,39.60,Licence fees,BLS*MONDAY.COM12017784567
05/08/2021,Customer Services,TESCO STOR,3.00,Meals for Training Courses,TESCO STORE 2487
05/08/2021,Prevention Delivery,SKECHERS U,56.00,Standard Equipment,SKECHERS USA LTD
06/08/2021,Stock,SAFETYSIGN,18.26,Standard Equipment Purchase,SAFETYSIGNS
06/08/2021,ICT Delivery,AMZNMktpla,3.71,ICT Desktop Service,AMZNMktplace
06/08/2021,Chelston Vehicle Engineering,SCREWFIX D,3.99,Vehicle Consumables,SCREWFIX DIRECT
06/08/2021,Insurance & Risk,LYRECO UK,4.46,Standard Equipment,PK10 ENERGIZER INDUSTRIAL ALK BAT AA LR6
06/08/2021,Insurance & Risk,LYRECO UK,4.68,Standard Equipment,PK10 ENERGIZER INDUSTRIAL ALK BATT AAA
06/08/2021,USAR Team,SOUTHERN C,16.00,Standard Equipment,SOUTHERN CO-OP 0358
06/08/2021,Taunton Group,PAYPAL *MA,32.58,Standard Equipment,PAYPAL *MAXEDBUY
06/08/2021,Yeovil Group,LYRECO UK,5.80,Printing/Stationery/Photocopy,LYRECO HARD BACK TWIN WIRE NOTEBOOK A5
06/08/2021,Yeovil Group,LYRECO UK,6.54,Printing/Stationery/Photocopy,PUKKA POCK NOTEBK 130X85MM RULEDSILV/BLK
06/08/2021,Yeovil Group,LYRECO UK,26.45,Printing/Stationery/Photocopy,CLEARTEX CHAIRMAT PHTH. FR CARPET 120X90
06/08/2021,Yeovil Group,LYRECO UK,14.46,Printing/Stationery/Photocopy,EXACTIVE 55934E 13-PART EXPANDG FILE BLK
06/08/2021,Academy Management,LYRECO UK,2.34,Standard Equipment,PK10 ENERGIZER INDUSTRIAL ALK BATT AAA
06/08/2021,Academy Management,LYRECO UK,11.70,Standard Equipment,PK10 ENERGIZER INDUSTRIAL ALK BATT AAA
06/08/2021,Academy Management,LYRECO UK,11.15,Standard Equipment,PK10 ENERGIZER INDUSTRIAL ALK BAT AA LR6
06/08/2021,Academy Management,LYRECO UK,63.30,Provisions Purchase,BX200 NESCAFE ORIGINAL SACHET
06/08/2021,Academy Management,LYRECO UK,1.50,Printing/Stationery/Photocopy,MICRON B/POINT PEN MED BLU
06/08/2021,Academy Management,LYRECO UK,9.50,Printing/Stationery/Photocopy,LYRECO THINGS TO DO PAD
06/08/2021,Academy Management,LYRECO UK,4.10,Printing/Stationery/Photocopy,PK4 LYRECO F/CHART MARKER B/TIP ASSTD
06/08/2021,Academy Management,LYRECO UK,5.16,Printing/Stationery/Photocopy,BX6 LYRECO BUDGET HIGHLIGHTERS ASSTD COL
06/08/2021,Academy Management,LYRECO UK,13.10,Printing/Stationery/Photocopy,PK4 BIC 1741 W/BOARD MARKER  1.4MM ASS
06/08/2021,Customer Services,CO-OP GROU,4.45,Meals for Training Courses,CO-OP GROUP FOOD
06/08/2021,Customer Services,CENTRAL CO,3.68,Meals for Training Courses,CENTRAL CONVENIENT STORES
06/08/2021,East & Somerset,MOTO HILTO,13.68,Catering/Refreshments,MOTO HILTON PARK SOUTH
07/08/2021,ICT Delivery,Amazon.co.,37.28,ICT Mobs Service Equipment,4x Logitech Keyboard
07/08/2021,Operational Assets Management,BRISTOL AI,66.99,Subsistence,BRISTOL AIRPORT LIMITE
07/08/2021,USAR Team,BALASAI LT,1.59,Acquisition Courses,BALASAI LTD
07/08/2021,USAR Team,SOUTHERN C,17.50,Standard Equipment,SOUTHERN CO-OP 0358
07/08/2021,Assets & Systems,TYPEFORM S,25.00,ICT Application Services (Oth),TYPEFORM S.L
08/08/2021,Public Relations,STK*Shutte,22.80,Printing/Stationery/Photocopy,STK*Shutterstock
08/08/2021,West & North,AMZNMktpla,111.65,Standard Equipment,AMZNMktplace
08/08/2021,Prevention Delivery,AMZNMktpla,13.32,Standard Equipment,AMZNMktplace
09/08/2021,ICT Delivery,AMZNMktpla,33.32,ICT Mobs Service Equipment,10x Packing boxes
09/08/2021,Operational Assets Management,SELECTA U.,2.00,Subsistence,SELECTA U.K. LIMITED
09/08/2021,Chelston Vehicle Engineering,YELLOW SHI,46.80,Garage Equipment,YELLOW SHIELD LTD
09/08/2021,Research & Development,4421,7.85,Catering/Refreshments,4421
09/08/2021,Customer Services,SOUTHERN C,3.50,Meals for Training Courses,SOUTHERN CO-OP 0373
09/08/2021,Customer Services,CENTRAL CO,3.99,Meals for Training Courses,CENTRAL CONVENIENT STORES
09/08/2021,Customer Services,TESCO STOR,2.72,Meals for Training Courses,TESCO STORES 3072
10/08/2021,Estates,RKG TRADIN,8.23,Standard Equipment,RKG TRADING LTD
10/08/2021,Crownhill Vehicle Engineering,Gate Retai,17.80,Catering/Refreshments,Gate Retail easyJet GBP
10/08/2021,Public Relations,PAPERTURN,9.00,ICT Application Services (Oth),PAPERTURN   *
10/08/2021,USAR Team,MCDONALDS,9.54,Catering/Refreshments,MCDONALDS
10/08/2021,USAR Team,ASH SAFETY,204.00,Operational Equipment,ASH SAFETY
10/08/2021,Operational Assurance,LYRECO UK,11.12,Standard Equipment,PK20 ENERGIZER ALKALINE MAX PLUS AAA
10/08/2021,Operational Assurance,LYRECO UK,11.12,Standard Equipment,PK20 ENERGIZER ALKALINE MAX PLUS AA
10/08/2021,Operational Assurance,LYRECO UK,9.40,Printing/Stationery/Photocopy,LYRECO HARD BACK TWIN WIRE NOTEBOOK A4
10/08/2021,Operational Assurance,LYRECO UK,1.08,Printing/Stationery/Photocopy,LYRECO LIQUID INK ROLLER BALL FINE BLK
10/08/2021,Operational Assurance,LYRECO UK,4.32,Printing/Stationery/Photocopy,LYRECO RETRACTABLE B/POINT PEN MED BLK
10/08/2021,Operational Assurance,LYRECO UK,3.28,Printing/Stationery/Photocopy,PK10 EXACOMPTA PREMIUM PROJECT FILE BLK
10/08/2021,Operational Assurance,LYRECO UK,11.44,Printing/Stationery/Photocopy,PK125 LYR ENV PLAIN 458X324 115G S/S MAN
10/08/2021,Academy Management,PPOINT_*M,4.25,Subsistence,PPOINT_*M & M RETAIL (BA)
10/08/2021,Academy Management,PPOINT_*M,33.08,Subsistence,PPOINT_*M & M RETAIL (BA)
10/08/2021,Academy Management,TESCO STOR,96.00,Catering/Refreshments,TESCO STORES 6269
10/08/2021,Assets & Systems,COSTA COFF,21.10,Catering/Refreshments,COSTA COFFEE 43043975
10/08/2021,Customer Services,SHELL COUN,4.49,Meals for Training Courses,SHELL COUNTES WEAR
10/08/2021,Customer Services,CO-OP GROU,3.50,Meals for Training Courses,CO-OP GROUP 380548
10/08/2021,Customer Services,TESCO STOR,3.00,Meals for Training Courses,TESCO STORE 2487
10/08/2021,West & North,AMZNMktpla,10.73,Standard Equipment,AMZNMktplace
11/08/2021,Barnstaple,LYRECO UK,91.48,Standard Equipment,PAPERFLOW 4063 DISPLAY RACK A5 BLACK
11/08/2021,Research & Development,WILLIAM BE,57.10,Catering/Refreshments,WILLIAM BEARDMORE 1951
11/08/2021,Protection - Delivery,HM LAND RE,3.00,Consultation Fees,HM LAND REGISTRY - ONLINE
11/08/2021,Protection - Delivery,HM LAND RE,3.00,Consultation Fees,HM LAND REGISTRY - ONLINE
11/08/2021,Protection - Delivery,HM LAND RE,3.00,Consultation Fees,HM LAND REGISTRY - ONLINE
11/08/2021,Protection - Delivery,HM LAND RE,3.00,Consultation Fees,HM LAND REGISTRY - ONLINE
11/08/2021,Protection - Delivery,HM LAND RE,3.00,Consultation Fees,HM LAND REGISTRY - ONLINE
11/08/2021,West Devon,LYRECO UK,5.00,Standard Equipment,RAID FLY WASP KILLER 300ML
11/08/2021,West Devon,LYRECO UK,1.68,Printing/Stationery/Photocopy,ANTISLIP MOUSE PAD BLU
11/08/2021,West Devon,LYRECO UK,1.76,Printing/Stationery/Photocopy,PK5 POPPER WALLET FOOLSCAP CLEAR
11/08/2021,West Devon,LYRECO UK,15.50,Printing/Stationery/Photocopy,BX100 LYRECO LAM POUCH 2X125MI A4 GLOSS
11/08/2021,West Devon,LYRECO UK,4.44,Printing/Stationery/Photocopy,PK100 LYRECO POCK A4 80MI ORGE PEEL
11/08/2021,West Devon,LYRECO UK,4.98,Printing/Stationery/Photocopy,LYRECO BUDGET DISPLAY BK 40POCK A4 BLACK
11/08/2021,West Devon,LYRECO UK,1.20,Printing/Stationery/Photocopy,LYRECO BUDGET DISPLAY BK 20POCK A4 BLACK
11/08/2021,Street Fire Station,VENT-AXIA,16.93,Unforseen Maintnce Mats Techn,VENT-AXIA GROUP LTD
11/08/2021,Customer Services,CO OP GROU,3.50,Meals for Training Courses,CO OP GROUP FOOD
11/08/2021,Customer Services,W M MORRIS,3.00,Meals for Training Courses,W M MORRISON PETROL
11/08/2021,Customer Services,SHELL OKEH,4.44,Meals for Training Courses,SHELL OKEHAMPTN147
12/08/2021,Chelston Vehicle Engineering,BEAVER GAR,120.51,Direct Replacmnt Parts-Defects,BEAVER GARAGES
12/08/2021,Crownhill Vehicle Engineering,Gate Retai,10.10,Catering/Refreshments,Gate Retail easyJet GBP
12/08/2021,Customer Services,CO-OP GROU,3.50,Meals for Training Courses,CO-OP GROUP PETROL
12/08/2021,Customer Services,LAZY GECKO,4.99,Meals for Training Courses,LAZY GECKO CAFE
13/08/2021,Insurance & Risk,LYRECO UK,4.00,Printing/Stationery/Photocopy,LYRECO TWIN WIRE SPIRAL PAD A5
13/08/2021,Insurance & Risk,LYRECO UK,6.08,Printing/Stationery/Photocopy,SASCO COMPACT YEAR PLANNER
13/08/2021,Fire Control,Amazon.co.,10.71,Standard Equipment,Amazon.co.uk*PT2TE0SG5
13/08/2021,Camels Head,EMS WASTE,75.00,Standard Equipment,EMS WASTE SERVICES
13/08/2021,Taunton Group,VIKING UK,12.49,Printing/Stationery/Photocopy,TAPE BK - BE DYMO 1 4500
13/08/2021,Taunton Group,VIKING UK,7.26,Printing/Stationery/Photocopy,TAPE BK ON RED 12MMX7M
13/08/2021,Taunton Group,VIKING UK,12.49,Printing/Stationery/Photocopy,LABELS BK ON GN DYMO
13/08/2021,Taunton Group,VIKING UK,12.49,Printing/Stationery/Photocopy,TAPE BK - WE DYMO 1 4500
13/08/2021,Customer Services,TESCO STOR,3.00,Meals for Training Courses,TESCO STORE 2679
13/08/2021,Customer Services,SOUTHERN C,3.50,Meals for Training Courses,SOUTHERN CO-OP 0373
13/08/2021,Customer Services,AMZNMktpla,9.58,Meals for Training Courses,AMZNMktplace
13/08/2021,Customer Services,AMZNMktpla,61.89,Meals for Training Courses,AMZNMktplace
13/08/2021,Prevention Delivery,Amazon Pri,6.66,Standard Equipment,Amazon Prime*Q70QK2J25
14/08/2021,Exeter Group,LYRECO UK,48.20,Printing/Stationery/Photocopy,RM500 LYRECO PAPER 90G A4 WH
14/08/2021,Exeter Group,LYRECO UK,7.15,Printing/Stationery/Photocopy,DYMO 45018 D1 TAPE 12MMX7M BLK/YLLW
14/08/2021,Exeter Group,LYRECO UK,7.56,Printing/Stationery/Photocopy,DYMO 45013 D1 TAPE 12MMX7M BLK/WH
14/08/2021,Exeter Group,LYRECO UK,18.25,Printing/Stationery/Photocopy,REXEL BOX FILE CHOICES PP TRANSLT WH
14/08/2021,Exeter Group,LYRECO UK,3.60,Printing/Stationery/Photocopy,LYRECO B/POINT PEN MED POINT BLK
14/08/2021,West & North,ALDI STORE,16.49,Standard Equipment,ALDI STORES
15/08/2021,Driver Training School,CENTRAL CO,3.99,Catering/Refreshments,CENTRAL CONVENIENT STORES
15/08/2021,Customer Services,CENTRAL CO,3.99,Meals for Training Courses,CENTRAL CONVENIENT STORES
16/08/2021,ICT Delivery,BT BUSINES,235.52,ICT Desktop Service,BT BUSINESS DIRECT
16/08/2021,Public Relations,dotmailer,240.00,Publications/Subscriptions,dotmailer
16/08/2021,USAR Team,SQ *QUAY C,490.00,Trng Equip Consumables,SQ *QUAY CLIMBING CENTRE
16/08/2021,South Devon,HALFORDS O,248.13,Operational Equipment,HALFORDS ON LINE
16/08/2021,Customer Services,TESCO STOR,3.00,Meals for Training Courses,TESCO STORE 2487
16/08/2021,Customer Services,SOUTHERN C,3.50,Meals for Training Courses,SOUTHERN CO-OP 0373
16/08/2021,Customer Services,SHELL A38,7.58,Meals for Training Courses,SHELL A38 WEST BUCKLAN
16/08/2021,West & North,AMZNMktpla,13.32,Standard Equipment,AMZNMktplace
16/08/2021,West & North,AO RETAIL,457.50,Standard Equipment,AO RETAIL LIMITED
17/08/2021,ICT Delivery,LYRECO UK,99.50,Printing/Stationery/Photocopy,RM500 LYRECO BUDGET PAPER A4 80G WH
17/08/2021,Democratic Services,LYRECO UK,15.91,Standard Equipment,ALBA HORLCDNEO DIGITAL CLOCK GB
17/08/2021,Procurement,RUMWELL FA,18.12,Subsistence,RUMWELL FARM SHOP
17/08/2021,Procurement,TESCO STOR,8.39,Catering/Refreshments,TESCO STORES 5138
17/08/2021,USAR Team,BLACKPOOL,51.96,Catering/Refreshments,BLACKPOOL SANDS
17/08/2021,USAR Dog,OSCARS HON,47.46,USAR Dog Expenses,OSCARS HONITON R/T CUR
17/08/2021,Taunton Group,LYRECO UK,2.79,Printing/Stationery/Photocopy,LYRECO WHITEBOARD CLEANING FOAM 400ML
17/08/2021,Taunton Group,LYRECO UK,5.64,Printing/Stationery/Photocopy,LYRECO REFILLABLE MAGNETIC ERASER
17/08/2021,Taunton Group,LYRECO UK,3.25,Printing/Stationery/Photocopy,PVC CLIPBOARD F/SCAP BLACK
17/08/2021,Taunton Group,LYRECO UK,8.10,Printing/Stationery/Photocopy,LYRECO BUDGET LEVER ARCH FILE 75MM YLLW
17/08/2021,Taunton Group,LYRECO UK,4.90,Printing/Stationery/Photocopy,LYRECO 2O-RING BINDER PP A4 25MM BLK
17/08/2021,Taunton Group,LYRECO UK,0.36,Printing/Stationery/Photocopy,SHATTER RESISTANT RULER 12 /30
17/08/2021,Taunton Group,LYRECO UK,3.00,Printing/Stationery/Photocopy,FOCUS BALL PEN MEDIUM BLK
17/08/2021,Taunton Group,LYRECO UK,1.50,Printing/Stationery/Photocopy,FOCUS BALL PEN MEDIUM BLUE
17/08/2021,Taunton Group,LYRECO UK,16.96,Printing/Stationery/Photocopy,PK4 LUMOCOLOR 316 N/PERM OHP PEN F ASSTD
17/08/2021,Taunton Group,LYRECO UK,7.40,Printing/Stationery/Photocopy,STABILO POINT 88 FINELINER 0.4MM BLACK
17/08/2021,Taunton Group,LYRECO UK,1.10,Printing/Stationery/Photocopy,PK12 LYRECO RFL F/MAGNETIC ERASER
17/08/2021,Taunton Group,LYRECO UK,3.84,Printing/Stationery/Photocopy,BX6 LYRECO MAGNETS ROUND 27MM RED
17/08/2021,Taunton Group,LYRECO UK,2.76,Printing/Stationery/Photocopy,BX10 LYRECO MAGNETS ROUND 22MM BLUE
17/08/2021,Assets & Systems,LAPTOPOUTL,337.45,Audio Visual Equipment,LAPTOPOUTLET.CO.UK
17/08/2021,Customer Services,TESCO STOR,3.00,Meals for Training Courses,TESCO STORE 2487
17/08/2021,Customer Services,SAINSBURYS,3.50,Meals for Training Courses,SAINSBURYS S/MKTS
17/08/2021,Customer Services,CROSS KEYS,9.00,Meals for Training Courses,CROSS KEYS SF CONNECT
17/08/2021,Customer Services,CO-OP GROU,3.50,Meals for Training Courses,CO-OP GROUP 380548
17/08/2021,West & North,AMZNMKTPLA,9.14,Standard Equipment,AMZNMKTPLACE AMAZON.CO.UK
17/08/2021,West & North,Amazon.co.,69.00,Standard Equipment,Amazon.co.uk*0E50525K5
17/08/2021,West & North,Amazon.co.,19.68,Standard Equipment,Amazon.co.uk*AS8SP0C35
17/08/2021,West & North,AMZNMktpla,13.13,Standard Equipment,AMZNMktplace
18/08/2021,ICT Delivery,SCREWFIX D,33.32,ICT Desktop Service,SCREWFIX DIRECT
18/08/2021,ICT Delivery,FASTHOSTS,6.28,ICT Infrastructure Service,FASTHOSTS INTERNET
18/08/2021,Hydrants Maintenance,RADIODETEC,468.70,Standard Equipment,RADIODETECTION LTD
18/08/2021,Public Relations,ADOBE PROD,8.42,ICT Application Services (Oth),ADOBE PRODUCTS
18/08/2021,South Devon,LYRECO UK,2.24,Printing/Stationery/Photocopy,LYRECO UNMOUNTED YEAR PLANNER
18/08/2021,South Devon,LYRECO UK,1.56,Printing/Stationery/Photocopy,LYRECO WEEK/VIEW DIARY A5 BLU
18/08/2021,South Devon,LYRECO UK,1.44,Printing/Stationery/Photocopy,LYRECO DIARY WEEK TO VIEW A5 PINK
18/08/2021,South Devon,LYRECO UK,2.43,Printing/Stationery/Photocopy,LYRECO PAGE/DAY DIARY A5 BLK
18/08/2021,South Devon,LYRECO UK,2.36,Printing/Stationery/Photocopy,SIMPLY A4MONTAB MONTHLY TABLET CALENDAR
18/08/2021,South Devon,LYRECO UK,1.59,Printing/Stationery/Photocopy,SIMPLY DTO DAILY TEAR OFF CALENDAR
18/08/2021,South Devon,LYRECO UK,8.70,Printing/Stationery/Photocopy,LYRECO HARD BACK TWIN WIRE NOTEBOOK A5
18/08/2021,South Devon,LYRECO UK,2.96,Printing/Stationery/Photocopy,LYRECO PAGE A DAY DIARY A4 BLU
18/08/2021,South Devon,LYRECO UK,2.96,Printing/Stationery/Photocopy,LYRECO PAGE A DAY DIARY A4 BURG
18/08/2021,South Devon,LYRECO UK,15.70,Printing/Stationery/Photocopy,CAMBRIDGE EVERYDAY LEGAL PAD A4 WH PAPER
18/08/2021,South Devon,LYRECO UK,4.44,Printing/Stationery/Photocopy,LYRECO PAGE A DAY DIARY A4 LIME GREEN
18/08/2021,South Devon,LYRECO UK,1.83,Printing/Stationery/Photocopy,LYRECO WEEK TO VIEW DIARY A5 LIME GREEN
18/08/2021,Customer Services,LYRECO UK,2.23,Standard Equipment,PK10 ENERGIZER INDUSTRIAL ALK BAT AA LR6
18/08/2021,Customer Services,LYRECO UK,2.34,Standard Equipment,PK10 ENERGIZER INDUSTRIAL ALK BATT AAA
18/08/2021,Customer Services,SHELL A38,4.92,Meals for Training Courses,SHELL A38 WEST BUCKLAN
18/08/2021,Customer Services,MFG WILLAN,3.29,Meals for Training Courses,MFG WILLAND
18/08/2021,Customer Services,TESCO STOR,3.00,Meals for Training Courses,TESCO STORES 5663
18/08/2021,Customer Services,LYRECO UK,5.04,Printing/Stationery/Photocopy,LYRECO PREM GEL INK PEN W/GRIP 0.7MM BLK
18/08/2021,Customer Services,LYRECO UK,0.56,Printing/Stationery/Photocopy,LYRECO UNMOUNTED YEAR PLANNER
18/08/2021,Customer Services,LYRECO UK,1.04,Printing/Stationery/Photocopy,LYRECO WEEK/VIEW DIARY A5 BLK
18/08/2021,Customer Services,LYRECO UK,1.48,Printing/Stationery/Photocopy,LYRECO PAGE A DAY DIARY A4 BLK
18/08/2021,Customer Services,LYRECO UK,1.59,Printing/Stationery/Photocopy,LYRECO PREMIUM WTV DIARY A5 BLU
18/08/2021,Customer Services,LYRECO UK,1.48,Printing/Stationery/Photocopy,LYRECO PAGE A DAY DIARY A4 BURG
18/08/2021,Customer Services,LYRECO UK,6.08,Printing/Stationery/Photocopy,SASCO COMPACT YEAR PLANNER
19/08/2021,Stock,WWW.REFERE,86.77,Uniforms Purchase,WWW.REFEREE-EQUIPMENT.
19/08/2021,Stock,SAILBOATS.,222.52,Uniforms Purchase,SAILBOATS.CO.UK
19/08/2021,ICT Delivery,AMZNMktpla,61.15,ICT Sat Nav Serv/Vehcile track,Phone windscreen mounts
19/08/2021,Exeter Group,LYRECO UK,4.75,Printing/Stationery/Photocopy,LYRECO THINGS TO DO PAD
19/08/2021,Exeter Group,LYRECO UK,5.70,Printing/Stationery/Photocopy,LYRECO THINGS TO DO PAD
19/08/2021,Exeter Group,LYRECO UK,4.48,Printing/Stationery/Photocopy,LYRECO UNMOUNTED YEAR PLANNER
19/08/2021,Exeter Group,LYRECO UK,3.24,Printing/Stationery/Photocopy,LYRECO PAGE/DAY DIARY A5 BLK
19/08/2021,Exeter Group,LYRECO UK,1.04,Printing/Stationery/Photocopy,LYRECO WEEK/VIEW DIARY A5 BLU
19/08/2021,Exeter Group,LYRECO UK,1.56,Printing/Stationery/Photocopy,LYRECO WEEK/VIEW DIARY A5 BLK
19/08/2021,Exeter Group,LYRECO UK,1.48,Printing/Stationery/Photocopy,LYRECO PAGE A DAY DIARY A4 BURG
19/08/2021,Exeter Group,LYRECO UK,5.92,Printing/Stationery/Photocopy,LYRECO PAGE A DAY DIARY A4 BLK
19/08/2021,Exeter Group,LYRECO UK,2.49,Printing/Stationery/Photocopy,LYRECO WEEK/VIEW DIARY A4 BLU
19/08/2021,Exeter Group,LYRECO UK,1.66,Printing/Stationery/Photocopy,LYRECO WEEK/VIEW DIARY A4 BLK
19/08/2021,Fire Control,LYRECO UK,5.06,Printing/Stationery/Photocopy,BX5000 REXEL STAPLES NO.16 24/6
19/08/2021,Fire Control,LYRECO UK,7.86,Printing/Stationery/Photocopy,SELLOTAPE TAPE 24MMX33M GOLDEN CLEAR
19/08/2021,Camels Head,AMZNMktpla,8.32,Standard Equipment,AMZNMktplace
19/08/2021,Camels Head,AMZNMktpla,14.15,Standard Equipment,AMZNMktplace
19/08/2021,Wells,WWW.SIGN-H,41.28,Standard Equipment,WWW.SIGN-HOLDERS.CO.UK
19/08/2021,Customer Services,LAZY GECKO,4.99,Meals for Training Courses,LAZY GECKO CAFE
19/08/2021,Customer Services,GRUBS UP,4.57,Meals for Training Courses,GRUBS UP
19/08/2021,Prevention Delivery,AMZNMktpla,7.48,Standard Equipment,AMZNMktplace
20/08/2021,ICT Delivery,MSFT *<E01,168.21,ICT Infrastructure Service,MSFT *<E0100FEOW7>
20/08/2021,Estates,TOOLSTATIO,8.03,Unforseen Maintnce Mats Techn,TOOLSTATION LTD
20/08/2021,Estates,LYRECO UK,1.48,Printing/Stationery/Photocopy,LYRECO PAGE A DAY DIARY A4 BLK
20/08/2021,Estates,LYRECO UK,5.67,Printing/Stationery/Photocopy,LYRECO PAGE/DAY DIARY A5 BLK
20/08/2021,Estates,LYRECO UK,1.48,Printing/Stationery/Photocopy,LYRECO PAGE A DAY DIARY A4 BLK
20/08/2021,Estates,LYRECO UK,1.48,Printing/Stationery/Photocopy,LYRECO PAGE A DAY DIARY A4 BLK
20/08/2021,Estates,LYRECO UK,1.48,Printing/Stationery/Photocopy,LYRECO PAGE A DAY DIARY A4 BLK
20/08/2021,Estates,LYRECO UK,0.81,Printing/Stationery/Photocopy,LYRECO PAGE/DAY DIARY A5 BLU
20/08/2021,Estates,LYRECO UK,2.26,Printing/Stationery/Photocopy,BX12 STABILO GREEN PENCIL W/ERASER HB
20/08/2021,Estates,LYRECO UK,14.30,Printing/Stationery/Photocopy,LUMOCOLOR 313 PERM OHP PEN SUPERFINE BLK
20/08/2021,Estates,LYRECO UK,0.83,Printing/Stationery/Photocopy,LYRECO WEEK/VIEW DIARY A4 BLK
20/08/2021,Estates,LYRECO UK,1.02,Printing/Stationery/Photocopy,LYRECO YEARLY CALENDAR
20/08/2021,Crownhill Vehicle Engineering,TAMAR BRID,25.00,Subsistence,TAMAR BRIDGE
20/08/2021,Procurement,LYRECO UK,2.72,Printing/Stationery/Photocopy,LYRECO YEARLY CALENDAR
20/08/2021,Taunton Group,ARGOS LTD,8.00,Standard Equipment,ARGOS LTD
20/08/2021,Taunton Group,ROYAL MAIL,105.64,Postages,ROYAL MAIL ONLINE SHOP
20/08/2021,Customer Services,TESCO STOR,1.85,Meals for Training Courses,TESCO STORE 2487
20/08/2021,Customer Services,TESCO PFS,3.20,Meals for Training Courses,TESCO PFS 2620
20/08/2021,Customer Services,CO-OP GROU,3.50,Meals for Training Courses,CO-OP GROUP 380548
20/08/2021,Customer Services,TESCO STOR,3.00,Meals for Training Courses,TESCO STORES 5663
21/08/2021,Public Relations,ADOBE PR C,16.64,ICT Application Services (Oth),ADOBE PR CREATIVE CLD
21/08/2021,Public Relations,FACEBK 9VT,700.00,Marketing Materials,FACEBK 9VTD96KFF2
21/08/2021,Organisational Development,TIGER,12.00,Printing/Stationery/Photocopy,TIGER
22/08/2021,ICT Delivery,AMZNMktpla,27.46,ICT Mobile Telephony Service,3x Samsung A40 cases
22/08/2021,Human Resources,LinkedIn 6,488.59,Recruitment Advertising,LinkedIn 6012674856
22/08/2021,Academy Management,TESCO STOR,15.54,Catering/Refreshments,TESCO STORES 2947
22/08/2021,West & North,AMZNMktpla,209.86,Standard Equipment,AMZNMktplace
22/08/2021,West & North,AMZNMktpla,29.98,Standard Equipment,AMZNMktplace
22/08/2021,Prevention Delivery,AMZNMktpla,6.66,Standard Equipment,AMZNMktplace
23/08/2021,ICT Delivery,POST OFFIC,26.75,Postages,POST OFFICE COUNTER
23/08/2021,Chelston Vehicle Engineering,BEAVER GAR,76.92,Lubricating Oil,BEAVER FORD
23/08/2021,Chelston Vehicle Engineering,BEAVER GAR,23.51,Direct Replacmnt Parts-Defects,BEAVER GARAGES
23/08/2021,Public Relations,HOTJAR,87.66,External Prof Support/Advice,HOTJAR
23/08/2021,Academy Management,TESCO STOR,18.20,Catering/Refreshments,TESCO STORES 3072
23/08/2021,Assets & Systems,iStock com,37.80,Licence fees,iStock com
23/08/2021,Customer Services,TESCO PFS,2.77,Meals for Training Courses,TESCO PFS 3792
23/08/2021,Customer Services,HONITON SF,2.10,Meals for Training Courses,HONITON SF CONNECT
23/08/2021,Customer Services,TESCO STOR,3.00,Meals for Training Courses,TESCO STORES 3072
24/08/2021,Crownhill Vehicle Engineering,EXETER TRU,831.66,Direct Replacmnt Parts-Defects,EXETER TRUCK PARTS
24/08/2021,Democratic Services,ROYAL MAIL,787.00,Postages,ROYAL MAIL GROUP LTD
24/08/2021,Burnham-on-Sea,ARGOS LTD,19.99,Standard Equipment,ARGOS LTD
24/08/2021,Human Resources,LYRECO UK,22.30,Standard Equipment,PK10 ENERGIZER INDUSTRIAL ALK BAT AA LR6
24/08/2021,Human Resources,LYRECO UK,10.27,Printing/Stationery/Photocopy,BX50 BIC CRISTAL MEDIUM POINT BLACK
24/08/2021,Human Resources,LYRECO UK,1.72,Printing/Stationery/Photocopy,BX6 LYRECO BUDGET HIGHLIGHTERS ASSTD COL
24/08/2021,Human Resources,LYRECO UK,21.41,Printing/Stationery/Photocopy,PK48 SWASH PREMIUM HIGHLIGHTER ASSORTED
24/08/2021,Human Resources,LYRECO UK,224.00,Printing/Stationery/Photocopy,SECO CERTIFICATE FRAME A4 BLK
24/08/2021,Academy Management,AMZNMktpla,38.32,Trng Equip Consumables,AMZNMktplace
24/08/2021,Customer Services,AIRDAT LTD,70.80,Driver Tests,AIRDAT LTD
24/08/2021,Customer Services,WAITROSE 6,3.30,Meals for Training Courses,WAITROSE 657
24/08/2021,Customer Services,TEXMOLEAVO,4.25,Meals for Training Courses,TEXMOLEAVONFORCRT
24/08/2021,Customer Services,LYRECO UK,19.90,Printing/Stationery/Photocopy,RM500 LYRECO BUDGET PAPER A4 80G WH
24/08/2021,Customer Services,LYRECO UK,3.33,Printing/Stationery/Photocopy,COLLINS PAGE A DAY DIARY A5 BLK
24/08/2021,Customer Services,LYRECO UK,5.92,Printing/Stationery/Photocopy,LYRECO PAGE A DAY DIARY A4 BLK
24/08/2021,Customer Services,LYRECO UK,2.11,Printing/Stationery/Photocopy,EXACOMPTA FOREVER 2-RING BINDER 30MM BLU
24/08/2021,Customer Services,LYRECO UK,4.82,Printing/Stationery/Photocopy,VERSAPAK SEC SACKS 152X178X50MM RED
24/08/2021,Customer Services,LYRECO UK,1.96,Printing/Stationery/Photocopy,LYRECO 7289-02 DESK PAD REFILL 25SHT
24/08/2021,Customer Services,LYRECO UK,0.52,Printing/Stationery/Photocopy,LYRECO WEEK/VIEW DIARY A5 BLU
24/08/2021,West & North,PAYPAL *FI,296.99,Standard Equipment,PAYPAL *FIRE SERVIC
25/08/2021,Exeter Group,HM LAND RE,3.00,Consultation Fees,HM LAND REGISTRY - ONLINE
25/08/2021,Exeter Group,HM LAND RE,3.00,Consultation Fees,HM LAND REGISTRY - ONLINE
25/08/2021,Exeter Group,HM LAND RE,3.00,Consultation Fees,HM LAND REGISTRY - ONLINE
25/08/2021,"Policy, Procedures & Process",Amazon.co.,48.32,Standard Equipment,Amazon.co.uk*OG7XL65G5
25/08/2021,"Policy, Procedures & Process",Amazon.co.,48.32,Standard Equipment,Amazon.co.uk*LD7L386U5
25/08/2021,"Policy, Procedures & Process",Amazon.co.,13.42,Standard Equipment,Amazon.co.uk*8M6KP6ZT5
25/08/2021,"Policy, Procedures & Process",Amazon.co.,13.42,Standard Equipment,Amazon.co.uk*PJ6LK3AZ5
25/08/2021,Driver Training School,TESCO STOR,7.40,Catering/Refreshments,TESCO STORE 2487
25/08/2021,Driver Training School,TESCO STOR,3.65,Meals for Training Courses,TESCO STORE 2487
25/08/2021,Academy Management,AMZNMktpla,29.97,Trng Equip Consumables,AMZNMktplace
25/08/2021,Assets & Systems,ZOOM.US 88,23.98,ICT Application Services (Oth),Standard Pro Monthly
25/08/2021,Customer Services,SAINSBURYS,3.50,Meals for Training Courses,SAINSBURYS PETROL
25/08/2021,Customer Services,TESCO PFS,3.00,Meals for Training Courses,TESCO PFS 2620
25/08/2021,Customer Services,LYRECO UK,6.08,Printing/Stationery/Photocopy,SASCO COMPACT YEAR PLANNER
25/08/2021,Customer Services,LYRECO UK,1.48,Printing/Stationery/Photocopy,LYRECO PAGE A DAY DIARY A4 BURG
25/08/2021,Customer Services,LYRECO UK,3.04,Printing/Stationery/Photocopy,TAPE GAFFA W/PRF BLACK 50MMX50M
25/08/2021,Customer Services,LYRECO UK,5.67,Printing/Stationery/Photocopy,COLLINS PAGE A DAY DIARY  A4 BLK
25/08/2021,West & North,Amazon.co.,33.65,Standard Equipment,Amazon.co.uk*6D0S94EK5
25/08/2021,West & North,SCREWFIX D,208.34,Standard Equipment,SCREWFIX DIRECT
26/08/2021,ICT Delivery,SCREWFIX D,124.95,ICT Desktop Service,SCREWFIX DIRECT
26/08/2021,ICT Delivery,WWW.DHL IN,116.05,ICT Mobs Service Equipment,WWW.DHL INTERNATIONAL
26/08/2021,ICT Delivery,AMZNMktpla,65.29,ICT Sat Nav Serv/Vehcile track,5x Phone dash mount
26/08/2021,Taunton Group,LYRECO UK,1.36,Printing/Stationery/Photocopy,BX10 LYRECO MAGNETS ROUND 22MM WHITE
26/08/2021,Yeovil Group,LYRECO UK,3.94,Printing/Stationery/Photocopy,VELCRO HOOK AND LOOP 5M
26/08/2021,Yeovil Group,LYRECO UK,4.32,Printing/Stationery/Photocopy,LYRECO GEL INK PEN 0.7MM BLK
26/08/2021,Yeovil Group,LYRECO UK,39.80,Printing/Stationery/Photocopy,RM500 LYRECO BUDGET PAPER A4 80G WH
26/08/2021,Yeovil Group,LYRECO UK,17.28,Printing/Stationery/Photocopy,LYRECO RETRACTABLE B/POINT PEN MED BLK
26/08/2021,Yeovil Group,LYRECO UK,6.00,Printing/Stationery/Photocopy,MICRON B/POINT PEN MED BLK
26/08/2021,Human Resources,RICSRECRUI,"1,058.40",Recruitment Advertising,RICSRECRUIT.COM SUNDAY
26/08/2021,Driver Training School,TESCO STOR,7.25,Catering/Refreshments,TESCO STORE 2487
26/08/2021,Customer Services,TESCO STOR,7.80,Meals for Training Courses,TESCO STORE 2487
26/08/2021,Customer Services,TESCO STOR,1.75,Meals for Training Courses,TESCO STORE 2679
26/08/2021,Customer Services,W M MORRIS,2.75,Meals for Training Courses,W M MORRISON
26/08/2021,Customer Services,LYRECO UK,5.67,Printing/Stationery/Photocopy,COLLINS PAGE A DAY DIARY  A4 BLK
26/08/2021,Customer Services,LYRECO UK,1.19,Printing/Stationery/Photocopy,ADHESIVE SHAPES AND PEN
26/08/2021,Customer Services,LYRECO UK,27.48,Printing/Stationery/Photocopy,SASCO MOUNTED YEAR PLANNER
26/08/2021,Customer Services,LYRECO UK,0.83,Printing/Stationery/Photocopy,LYRECO WEEK/VIEW DIARY A4 BLU
26/08/2021,Customer Services,LYRECO UK,1.48,Printing/Stationery/Photocopy,LYRECO PAGE A DAY DIARY A4 BLK
26/08/2021,West & North,AMZNMKTPLA,17.26,Standard Equipment,AMZNMKTPLACE AMAZON.CO.UK
26/08/2021,West & North,AMZNMKTPLA,12.10,Standard Equipment,AMZNMKTPLACE AMAZON.CO.UK
"14,808.54","1,603.89",,,,
